fUSD/lending_fUSD_20250212
["ID","MTS","AMOUNT","RATE_DAILY","PERIOD"]
[352899012,1739395749204,-500.0,9.999e-05,2]
[352899013,1739395749391,-482.9860934,9.999e-05,2]
[352899014,1739395749413,-500.0,9.999e-05,2]
[352899015,1739395749438,-305.12006526,9.999e-05,2]
[352899016,1739395749462,-2161.89384134,0.0001,2]
[352899032,1739395831476,-1300.0,0.0001,2]
[352899033,1739395831488,-7409.00192669,0.0001,2]
[352899034,1739395831547,-219789.32222469,0.0001,2]
[352899035,1739395831601,-839.4699975,0.0001,2]
[352899036,1739395831616,-106662.5922873,0.0001,2]
[352899037,1739395831628,-223724.23015995,0.0001,2]
[352899038,1739395831641,-65889.02209188,0.0001,2]
[352899039,1739395831670,-3049.99998966,0.0001,2]
[352899040,1739395831686,-320.25724888,0.0001,2]
[352899041,1739395831697,-413.87648906,0.0001,2]
[352899042,1739395831734,-320.09861389,0.0001,2]
[352899043,1739395831749,-1661.39843761,0.0001,2]
[352899044,1739395831803,-7856.97850683,0.0001,2]
[352899045,1739395831903,-155358.42494511,0.0001,2]
[352899047,1739395831916,-349.990002,0.0001,2]
[352899050,1739395831930,-281.6899999,0.0001,2]
[352899051,1739395831943,-5706.85720341,0.0001,2]
[352899055,1739395833914,1296.3847,8.699e-05,2]
[352899063,1739395837374,-254.29212141,0.0001,2]
[352899064,1739395837385,-22697.54742257,0.0001,2]
[352899065,1739395837487,-9817.244501,0.0001,2]
[352899066,1739395837499,-18515.36205,0.0001,2]
[352899067,1739395837510,-5983.59142758,0.0001,2]
[352899068,1739395837521,-111431.03747,0.0001,2]
[352899069,1739395837549,-45912.08606279,0.0001,2]
[352899070,1739395837560,-119174.24,0.0001,2]
[352899071,1739395837573,-1974.40092,0.0001,2]
[352899072,1739395837586,-74333.50390776,0.0001,2]
[352899073,1739395837656,-5225.40408642,0.0001,2]
[352899074,1739395837669,-40775.9895952,0.0001,2]
[352899075,1739395837684,-5493.06988919,0.0001,2]
[352899077,1739395837697,-294.60029047,0.0001,2]
[352899079,1739395837720,-3909.48341962,0.0001,2]
[352899083,1739395837778,-884.87044586,0.0001,2]
[352899272,1739395839690,-18918.55938786,0.0001,2]
[352899274,1739395839702,-500.0,0.0001,2]
[352899276,1739395839714,-2362.25873349,0.0001,2]
[352899280,1739395839738,-5532.57036662,0.0001,2]
[352899282,1739395839750,-6029.48000006,0.0001,2]
[352899285,1739395839774,-1067.39875399,0.0001,2]
[352899288,1739395839785,-387.72733961,0.0001,2]
[352899290,1739395839799,-5893.09396225,0.0001,2]
[352899292,1739395839810,-1235.61725669,0.0001,2]
[352899295,1739395839821,-261.90493007,0.0001,2]
[352899297,1739395839832,-356.57651374,0.0001,2]
[352899301,1739395839859,-3769.0,0.0001,2]
[352899308,1739395839920,-277.34870749,0.0001,2]
[352899310,1739395839931,-24376.88969848,0.0001,2]
[352899312,1739395839943,-294.02922775,0.0001,2]
[352899315,1739395839954,-293.00783438,0.0001,2]
[352899318,1739395839972,-3165.3,0.0001,2]
[352899320,1739395839984,-1710.942436,0.0001,2]
[352899322,1739395839995,-1136.2383684,0.0001,2]
[352899326,1739395840021,-609.5,0.0001,2]
[352899328,1739395840032,-346.02250741,0.0001,2]
[352899340,1739395840132,-6643.93594932,0.0001,2]
[352899342,1739395840141,-2843.91611724,0.0001,2]
[352899344,1739395840151,-18380.42895138,0.0001,2]
[352899347,1739395840171,-2086.34631808,0.0001,2]
[352899349,1739395840182,-546.12273701,0.0001,2]
[352899568,1739395842468,-1558.47635667,0.0001,2]
[352899570,1739395842480,-763.7351025,0.0001,2]
[352899572,1739395842492,-904.14251118,0.0001,2]
[352899575,1739395842504,-3020.0,0.0001,2]
[352899578,1739395842527,-1083.88180592,0.0001,2]
[352899580,1739395842538,-4413.63513586,0.0001,2]
[352899583,1739395842550,-1652.5,0.0001,2]
[352899585,1739395842562,-426.17584424,0.0001,2]
[352899594,1739395842641,-2346.576069,0.0001,2]
[352899597,1739395842653,-2312.4955002,0.0001,2]
[352899599,1739395842665,-3472.52034028,0.0001,2]
[352899601,1739395842679,-487.57560624,0.0001,2]
[352899603,1739395842691,-1172.41058247,0.0001,2]
[352899611,1739395842758,-1050.28636296,0.0001,2]
[352899613,1739395842772,-78105.52015023,0.0001,2]
[352899890,1739395845527,-4505.99318059,0.0001,2]
[352899892,1739395845539,-1160.0,0.0001,2]
[352899894,1739395845551,-255582.66911807,0.0001,2]
[352899896,1739395845561,-365.77525998,0.0001,2]
[352899898,1739395845571,-5366.20693454,0.0001,2]
[352899901,1739395845582,-295.21,0.00010137,2]
[352899903,1739395845592,-5554.0,0.000107,5]
[352899906,1739395845612,-1907.71293129,0.00012066,2]
[352899908,1739395845624,-150.0,0.0001331,2]
[352899910,1739395845635,-867.61,0.00013435,2]
[352899912,1739395845647,-150.0,0.0001355,2]
[352899914,1739395845657,-596.58,0.000145,2]
[352899916,1739395845668,-644.65,0.00014878,2]
[352899919,1739395845683,-150.0,0.00014893,2]
[352899921,1739395845693,-187.70470995,0.00014893,2]
[352899923,1739395845703,-281.76678614,0.00014893,2]
[352899925,1739395845714,-150.0,0.000149,2]
[352899927,1739395845726,-250.0,0.00014906,2]
[352899929,1739395845736,-9132.56,0.00014941,2]
[352899931,1739395845747,-150.0,0.00014993,2]
[352899933,1739395845758,-150.0,0.00015,2]
[352899935,1739395845768,-2914.28093622,0.00015096,2]
[352899938,1739395845779,-165.45,0.00015129,2]
[352899940,1739395845789,-426.79,0.0001519,2]
[352899942,1739395845799,-244.31,0.00015248,2]
[352899944,1739395845809,-150.0,0.00015313,2]
[352899946,1739395845820,-150.0,0.0001533,2]
[352899948,1739395845830,-177.58,0.00015397,2]
[352899950,1739395845840,-2003.88807161,0.000155,2]
[352899952,1739395845850,-219.35,0.00015509,2]
[352899954,1739395845860,-1283.97240396,0.00015534,2]
[352899956,1739395845871,-867.61,0.00015699,2]
[352899958,1739395845880,-509.26,0.00015701,2]
[352899960,1739395845890,-497.48,0.00015701,2]
[352899962,1739395845900,-506.82,0.00015701,2]
[352899964,1739395845911,-494.52,0.00015701,2]
[352899966,1739395845921,-1000.0,0.00015701,2]
[352899968,1739395845931,-1700.0,0.000158,5]
[352899970,1739395845941,-150.0,0.00015801,2]
[352899973,1739395845952,-14490.89377314,0.00015858,2]
[352899976,1739395845962,-2300.0,0.000159,5]
[352899979,1739395845971,-150.0,0.00015923,2]
[352899981,1739395845981,-150.0,0.00015955,2]
[352899983,1739395845991,-152.45891373,0.00015973,2]
[352899985,1739395846001,-170.37,0.00015974,2]
[352899987,1739395846010,-167620.73557033,0.00015998,7]
[352899989,1739395846020,-35197.0,0.00016,3]
[352899991,1739395846031,-17332.05025217,0.00016,3]
[352899993,1739395846040,-9661.52603048,0.00016,2]
[352899995,1739395846051,-493191.57349929,0.00016,5]
[352899997,1739395846065,-438.68761228,0.00016,5]
[352900004,1739395846123,-770.85907999,0.00016,5]
[352900059,1739395870775,-150.0,0.0001,2]
[352900080,1739397031796,-345.5761,8.973e-05,2]
[352900081,1739397031807,-151.21,0.00010137,2]
[352900082,1739397031817,-150.0,0.00011,2]
[352900083,1739397031827,-150.0,0.000125,2]
[352900084,1739397031836,-335.50082644,0.000129,2]
[352900085,1739397031847,-785.00934325,0.000129,2]
[352900086,1739397031859,-275.83066418,0.000129,2]
[352900087,1739397031949,-1880.79730344,0.000129,2]
[352900088,1739397032067,-2345.47324406,0.000129,2]
[352900089,1739397032080,-550.0,0.00013,2]
[352900090,1739397032090,-934.09,0.00013242,2]
[352900091,1739397032100,-150.0,0.00014356,2]
[352900092,1739397032110,-150.0,0.00014482,2]
[352900093,1739397032254,-165.45,0.00014567,2]
[352900094,1739397032265,-297.53510741,0.00014893,2]
[352900095,1739397032276,-250.0,0.00014916,2]
[352900096,1739397032286,-300.0,0.00014999,2]
[352900098,1739397032296,-150.0,0.00015,2]
[352900100,1739397032306,-600.0,0.00015,2]
[352900102,1739397032316,-553.86,0.00015155,2]
[352900104,1739397032326,-1000.0,0.0001531,2]
[352900106,1739397032336,-170.37,0.000155,2]
[352900108,1739397032346,-934.09,0.00015506,2]
[352900110,1739397032355,-717.88537,0.000156,2]
[352900112,1739397032364,-900.0,0.000157,5]
[352900114,1739397032374,-958.76325774,0.00015709,2]
[352900116,1739397032384,-1800.0,0.000158,5]
[352900117,1739397032393,-150.0,0.000158,2]
[352900118,1739397032402,-346.2314276,0.00015836,2]
[352900120,1739397032411,-207.41581339,0.00015838,2]
[352900122,1739397032421,-167.39541187,0.000159,2]
[352900124,1739397032430,-154.16148571,0.000159,2]
[352900126,1739397032439,-2700.0,0.000159,5]
[352900128,1739397032448,-316.4345845,0.000159,2]
[352900130,1739397032457,-151.97,0.0001599,2]
[352900132,1739397032467,-21345.95849095,0.00015998,7]
[352900134,1739397032476,-3459.85,0.00015999,2]
[352900136,1739397032485,-171.471,0.00015999,2]
[352900138,1739397032495,-999.0,0.00015999,2]
[352900140,1739397032504,-266491.24993051,0.00016,5]
[352900142,1739397032517,-1470.75748569,0.00016,5]
[352900144,1739397032528,-3983.04186657,0.00016,5]
[352900146,1739397032541,-14662.62076938,0.00016,5]
[352900149,1739397032552,-329286.93730662,0.00016,5]
[352900153,1739397032583,-961.67907138,0.00016,5]
[352900155,1739397032595,-640.73268982,0.00016,5]
[352900157,1739397032605,-15367.69241808,0.00016,5]
[352900169,1739397038088,-1972.34,0.00016,5]
[352900172,1739397038110,-308.91828684,0.00016,5]
[352900176,1739397038133,-1815.97474894,0.00016,5]
[352900179,1739397038154,-4857.2,0.00016,5]
[352900182,1739397038175,-1149.02967369,0.00016,5]
[352900185,1739397038197,-4037.57747779,0.00016,5]
[352900189,1739397038218,-130041.9909751,0.00016,5]
[352900192,1739397038239,-989.10208586,0.00016,5]
[352900195,1739397038260,-27886.05,0.00016,5]
[352900198,1739397038281,-41497.47791056,0.00016,5]
[352900358,1739397039986,-97950.0,0.00016,5]
[352900361,1739397039998,-3150.11392817,0.00016,5]
[352900363,1739397040009,-437.1845258,0.00016,5]
[352900367,1739397040037,-221304.99111886,0.00016,5]
[352900369,1739397040046,-200.0,0.00016,2]
[352900371,1739397040056,-4000.0,0.00016,2]
[352900373,1739397040066,-500.55,0.00016,2]
[352900375,1739397040075,-1436.1954958,0.00016225,2]
[352900377,1739397040090,-766.0,0.00016271,2]
[352900379,1739397040099,-1000.0,0.00016279,2]
[352900381,1739397040110,-150.0,0.0001628,2]
[352900383,1739397040119,-1000.0,0.00016282,2]
[352900385,1739397040131,-150.0,0.00016284,2]
[352900387,1739397040140,-1000.0,0.00016286,2]
[352900389,1739397040149,-150.0,0.00016289,2]
[352900391,1739397040160,-1000.0,0.00016298,2]
[352900393,1739397040169,-150.0,0.00016302,2]
[352900395,1739397040179,-150.0,0.00016303,2]
[352900397,1739397040188,-150.0,0.00016315,2]
[352900399,1739397040197,-1000.0,0.00016316,2]
[352900401,1739397040207,-150.0,0.00016318,2]
[352900403,1739397040216,-150.0,0.00016326,2]
[352900405,1739397040226,-150.0,0.00016327,2]
[352900407,1739397040235,-150.0,0.00016329,2]
[352900409,1739397040246,-150.0,0.00016334,2]
[352900411,1739397040255,-150.0,0.0001634,2]
[352900413,1739397040264,-150.0,0.00016342,2]
[352900414,1739397040274,-150.0,0.00016342,2]
[352900417,1739397040284,-1000.0,0.0001635,2]
[352900418,1739397040293,-150.0,0.00016351,2]
[352900420,1739397040303,-289.61276548,0.0001636,2]
[352900422,1739397040312,-150.0,0.0001636,2]
[352900424,1739397040323,-150.0,0.00016362,2]
[352900426,1739397040333,-150.0,0.00016366,2]
[352900428,1739397040342,-150.0,0.00016366,2]
[352900430,1739397040351,-150.0,0.00016371,2]
[352900432,1739397040360,-150.0,0.00016372,2]
[352900434,1739397040370,-150.0,0.00016372,2]
[352900436,1739397040380,-776.36741845,0.00016372,2]
[352900438,1739397040390,-150.0,0.00016374,2]
[352900441,1739397040401,-1000.0,0.00016375,2]
[352900442,1739397040411,-150.0,0.00016375,2]
[352900445,1739397040421,-150.0,0.00016376,2]
[352900447,1739397040430,-150.0,0.00016379,2]
[352900449,1739397040439,-150.0,0.00016385,2]
[352900451,1739397040449,-150.0,0.00016386,2]
[352900453,1739397040459,-150.0,0.00016387,2]
[352900455,1739397040470,-1000.0,0.00016392,2]
[352900457,1739397040479,-150.0,0.00016393,2]
[352900458,1739397040489,-150.0,0.00016395,2]
[352900460,1739397040498,-1000.0,0.00016396,2]
[352900462,1739397040507,-150.0,0.00016401,2]
[352900464,1739397040517,-150.0,0.00016403,2]
[352900466,1739397040527,-150.0,0.00016406,2]
[352900468,1739397040536,-150.0,0.00016406,2]
[352900470,1739397040545,-150.0,0.0001641,2]
[352900472,1739397040554,-1000.0,0.0001641,2]
[352900474,1739397040563,-150.0,0.00016412,2]
[352900476,1739397040572,-150.0,0.00016415,2]
[352900478,1739397040581,-150.0,0.00016416,2]
[352900480,1739397040591,-420.0,0.00016416,2]
[352900483,1739397040601,-150.0,0.00016419,2]
[352900484,1739397040610,-150.0,0.00016421,2]
[352900487,1739397040620,-150.0,0.00016422,2]
[352900488,1739397040629,-500.0,0.00016425,2]
[352900491,1739397040638,-200.0,0.00016425,2]
[352900492,1739397040648,-150.0,0.00016425,2]
[352900495,1739397040657,-1000.0,0.00016429,2]
[352900497,1739397040667,-150.0,0.0001643,2]
[352900499,1739397040677,-1000.0,0.00016431,2]
[352900501,1739397040687,-563.68614634,0.00016437,2]
[352900503,1739397040697,-684.599086,0.00016438,2]
[352900505,1739397040707,-500.0,0.00016438,2]
[352900506,1739397040716,-500.0,0.00016438,2]
[352900508,1739397040726,-500.0,0.00016438,2]
[352900510,1739397040736,-500.0,0.00016438,2]
[352900513,1739397040746,-161.399216,0.00016438,2]
[352900514,1739397040756,-155.877994,0.00016438,2]
[352900517,1739397040767,-297.36702734,0.00016438,2]
[352900519,1739397040778,-559.23949717,0.00016438,2]
[352900521,1739397040788,-500.0,0.00016438,2]
[352900523,1739397040798,-500.0,0.00016438,2]
[352900525,1739397040808,-500.0,0.00016438,2]
[352900527,1739397040819,-500.0,0.00016438,2]
[352900529,1739397040829,-500.69819333,0.00016438,2]
[352900531,1739397040839,-500.0,0.00016438,2]
[352900533,1739397040848,-500.0,0.00016438,2]
[352900535,1739397040858,-500.0,0.00016438,2]
[352900537,1739397040867,-500.0,0.00016438,2]
[352900539,1739397040877,-500.0,0.00016438,2]
[352900541,1739397040887,-670.592923,0.00016438,2]
[352900543,1739397040897,-500.0,0.00016438,2]
[352900545,1739397040908,-500.0,0.00016438,2]
[352900547,1739397040917,-500.0,0.00016438,2]
[352900549,1739397040927,-384.36885087,0.00016438,2]
[352900551,1739397040936,-500.0,0.00016438,2]
[352900553,1739397040946,-519.6086448,0.00016438,2]
[352900555,1739397040955,-500.0,0.00016438,2]
[352900557,1739397040966,-500.0,0.00016438,2]
[352900560,1739397040976,-500.0,0.00016438,2]
[352900562,1739397040986,-500.0,0.00016438,2]
[352900563,1739397040995,-500.0,0.00016438,2]
[352900566,1739397041006,-500.0,0.00016438,2]
[352900568,1739397041016,-500.0,0.00016438,2]
[352900570,1739397041025,-500.0,0.00016438,2]
[352900572,1739397041036,-500.0,0.00016438,2]
[352900574,1739397041045,-500.0,0.00016438,2]
[352900576,1739397041055,-500.0,0.00016438,2]
[352900578,1739397041065,-253.12517652,0.00016438,2]
[352900580,1739397041078,-500.0,0.00016438,2]
[352900582,1739397041088,-500.0,0.00016438,2]
[352900584,1739397041098,-500.0,0.00016438,2]
[352900586,1739397041108,-500.0,0.00016438,2]
[352900588,1739397041118,-500.0,0.00016438,2]
[352900590,1739397041129,-275.01384469,0.00016438,2]
[352900592,1739397041139,-1200.0,0.00016438,2]
[352900594,1739397041149,-500.0,0.00016438,2]
[352900596,1739397041160,-500.0,0.00016438,2]
[352900598,1739397041172,-545.50166104,0.00016438,2]
[352900600,1739397041182,-500.0,0.00016438,2]
[352900602,1739397041192,-500.0,0.00016438,2]
[352900604,1739397041202,-500.0,0.00016438,2]
[352900606,1739397041213,-500.0,0.00016438,2]
[352900608,1739397041223,-417.78990335,0.00016438,2]
[352900610,1739397041233,-500.0,0.00016438,2]
[352900612,1739397041243,-502.03007649,0.00016438,2]
[352900614,1739397041252,-507.37,0.00016438,2]
[352900616,1739397041262,-500.0,0.00016438,2]
[352900618,1739397041271,-500.0,0.00016438,2]
[352900620,1739397041281,-156.650675,0.00016438,2]
[352900623,1739397041291,-500.0,0.00016438,2]
[352900625,1739397041303,-500.0,0.00016438,2]
[352900627,1739397041313,-500.0,0.00016438,2]
[352900629,1739397041323,-500.0,0.00016438,2]
[352900631,1739397041333,-159.12456,0.00016438,2]
[352900633,1739397041343,-500.0,0.00016438,2]
[352900635,1739397041352,-500.0,0.00016438,2]
[352900637,1739397041362,-500.0,0.00016438,2]
[352900639,1739397041371,-500.0,0.00016438,2]
[352900641,1739397041381,-500.0,0.00016438,2]
[352900643,1739397041390,-500.0,0.00016438,2]
[352900645,1739397041399,-500.0,0.00016438,2]
[352900647,1739397041409,-500.0,0.00016438,2]
[352900649,1739397041418,-500.0,0.00016438,2]
[352900651,1739397041428,-500.0,0.00016438,2]
[352900653,1739397041438,-196.93348348,0.00016438,2]
[352900655,1739397041447,-500.0,0.00016438,2]
[352900657,1739397041457,-506.93,0.00016438,2]
[352900659,1739397041467,-500.50363449,0.00016438,2]
[352900661,1739397041477,-500.0,0.00016438,2]
[352900663,1739397041487,-656.15,0.00016438,2]
[352900665,1739397041497,-555.4992663,0.00016438,2]
[352900667,1739397041507,-500.0,0.00016438,2]
[352900669,1739397041517,-598.95,0.00016438,2]
[352900671,1739397041527,-558.87,0.00016438,2]
[352900673,1739397041537,-625.22,0.00016438,2]
[352900675,1739397041546,-500.0,0.00016438,2]
[352900677,1739397041555,-500.0,0.00016438,2]
[352900679,1739397041565,-500.0,0.00016438,2]
[352900681,1739397041574,-510.41422752,0.00016438,2]
[352900683,1739397041584,-500.0,0.00016438,2]
[352900685,1739397041594,-660.46,0.00016438,2]
[352900687,1739397041603,-500.0,0.00016438,2]
[352900689,1739397041613,-500.0,0.00016438,2]
[352900691,1739397041623,-293.77079974,0.00016438,2]
[352900693,1739397041633,-500.0,0.00016438,2]
[352900695,1739397041643,-590.4095567,0.00016438,2]
[352900697,1739397041653,-500.0,0.00016438,2]
[352900699,1739397041663,-500.0,0.00016438,2]
[352900701,1739397041673,-500.0,0.00016438,2]
[352900703,1739397041683,-500.0,0.00016438,2]
[352900705,1739397041692,-766.71,0.00016438,2]
[352900707,1739397041702,-500.0,0.00016438,2]
[352900709,1739397041712,-500.0,0.00016438,2]
[352900711,1739397041723,-500.0,0.00016438,2]
[352900713,1739397041732,-500.0,0.00016438,2]
[352900731,1739397041887,-504.99,0.00016438,2]
[352900733,1739397041902,-528.7,0.00016438,2]
[352900735,1739397041911,-158.283986,0.00016438,2]
[352900737,1739397041921,-500.0,0.00016438,2]
[352900738,1739397041930,-500.0,0.00016438,2]
[352900739,1739397041940,-500.0,0.00016438,2]
[352900740,1739397041949,-500.0,0.00016438,2]
[352900741,1739397041958,-500.0,0.00016438,2]
[352900742,1739397041968,-500.0,0.00016438,2]
[352900743,1739397041978,-500.0,0.00016438,2]
[352900744,1739397041987,-500.0,0.00016438,2]
[352900745,1739397041996,-513.53785999,0.00016438,2]
[352900746,1739397042005,-500.0,0.00016438,2]
[352900747,1739397042014,-500.0,0.00016438,2]
[352900748,1739397042023,-500.0,0.00016438,2]
[352900750,1739397042033,-500.0,0.00016438,2]
[352900752,1739397042043,-500.0,0.00016438,2]
[352900754,1739397042052,-500.0,0.00016438,2]
[352900756,1739397042061,-500.0,0.00016438,2]
[352900758,1739397042070,-612.52,0.00016438,2]
[352900760,1739397042081,-427.71197663,0.00016438,2]
[352900762,1739397042091,-500.0,0.00016438,2]
[352900764,1739397042100,-1341.99,0.00016438,2]
[352900766,1739397042109,-500.0,0.00016438,2]
[352900768,1739397042118,-500.0,0.00016438,2]
[352900770,1739397042129,-439.92753155,0.00016438,2]
[352900772,1739397042138,-352.28511981,0.00016438,2]
[352900774,1739397042148,-500.73832408,0.00016438,2]
[352900776,1739397042160,-500.0,0.00016438,2]
[352900778,1739397042171,-500.0,0.00016438,2]
[352900780,1739397042180,-500.0,0.00016438,2]
[352900782,1739397042189,-500.0,0.00016438,2]
[352900784,1739397042199,-620.06,0.00016438,2]
[352900786,1739397042208,-500.0,0.00016438,2]
[352900788,1739397042219,-500.0,0.00016438,2]
[352900790,1739397042228,-500.0,0.00016438,2]
[352900792,1739397042238,-500.0,0.00016438,2]
[352900794,1739397042248,-705.6,0.00016438,2]
[352900796,1739397042257,-500.0,0.00016438,2]
[352900798,1739397042267,-500.0,0.00016438,2]
[352900800,1739397042278,-500.0,0.00016438,2]
[352900802,1739397042287,-500.0,0.00016438,2]
[352900804,1739397042297,-500.95302455,0.00016438,2]
[352900806,1739397042306,-500.0,0.00016438,2]
[352900808,1739397042316,-500.0,0.00016438,2]
[352900811,1739397042326,-500.0,0.00016438,2]
[352900813,1739397042335,-500.0,0.00016438,2]
[352900815,1739397042345,-500.0,0.00016438,2]
[352900817,1739397042354,-500.98733467,0.00016438,2]
[352900819,1739397042364,-933.4,0.00016438,2]
[352900821,1739397042373,-553.35,0.00016438,2]
[352900823,1739397042382,-500.0,0.00016438,2]
[352900825,1739397042392,-500.0,0.00016438,2]
[352900827,1739397042401,-500.0,0.00016438,2]
[352900829,1739397042411,-500.0,0.00016438,2]
[352900831,1739397042420,-500.0,0.00016438,2]
[352900833,1739397042429,-599.46817129,0.00016438,2]
[352900835,1739397042439,-500.0,0.00016438,2]
[352900837,1739397042449,-500.0,0.00016438,2]
[352900839,1739397042458,-993.53,0.00016438,2]
[352900841,1739397042473,-500.0,0.00016438,2]
[352900843,1739397042482,-500.0,0.00016438,2]
[352900844,1739397042492,-501.69994111,0.00016438,2]
[352900846,1739397042501,-463.48381411,0.00016438,2]
[352900848,1739397042511,-500.0,0.00016438,2]
[352900850,1739397042520,-500.0,0.00016438,2]
[352900852,1739397042530,-500.0,0.00016438,2]
[352900854,1739397042540,-500.0,0.00016438,2]
[352900856,1739397042550,-581.18,0.00016438,2]
[352900858,1739397042559,-500.0,0.00016438,2]
[352900860,1739397042569,-500.0,0.00016438,2]
[352900862,1739397042578,-500.0,0.00016438,2]
[352900864,1739397042588,-591.6,0.00016438,2]
[352900866,1739397042598,-500.0,0.00016438,2]
[352900868,1739397042608,-968.4,0.00016438,2]
[352900870,1739397042617,-611.29,0.00016438,2]
[352900872,1739397042628,-312.6246228,0.00016438,2]
[352900874,1739397042637,-920.23,0.00016438,2]
[352900876,1739397042647,-500.0,0.00016438,2]
[352900879,1739397042656,-500.0,0.00016438,2]
[352900883,1739397042666,-500.0,0.00016438,2]
[352900886,1739397042677,-500.0,0.00016438,2]
[352900889,1739397042686,-611.74,0.00016438,2]
[352900891,1739397042696,-523.57,0.00016438,2]
[352900893,1739397042706,-520.29,0.00016438,2]
[352900895,1739397042716,-500.0,0.00016438,2]
[352900897,1739397042726,-500.0,0.00016438,2]
[352900899,1739397042735,-532.43,0.00016438,2]
[352900901,1739397042746,-619.26304612,0.00016438,2]
[352900903,1739397042755,-500.0,0.00016438,2]
[352900905,1739397042765,-500.0,0.00016438,2]
[352900907,1739397042774,-500.0,0.00016438,2]
[352900909,1739397042784,-500.0,0.00016438,2]
[352900911,1739397042794,-500.0,0.00016438,2]
[352900913,1739397042803,-718.22,0.00016438,2]
[352900915,1739397042812,-500.0,0.00016438,2]
[352900917,1739397042822,-500.0,0.00016438,2]
[352900919,1739397042832,-500.0,0.00016438,2]
[352900921,1739397042841,-931.62,0.00016438,2]
[352900922,1739397042851,-509.97137665,0.00016438,2]
[352900924,1739397042860,-501.46877145,0.00016438,2]
[352900926,1739397042870,-500.0,0.00016438,2]
[352900928,1739397042879,-500.0,0.00016438,2]
[352900930,1739397042889,-566.99,0.00016438,2]
[352900932,1739397042898,-500.0,0.00016438,2]
[352900935,1739397042908,-500.0,0.00016438,2]
[352900937,1739397042917,-500.0,0.00016438,2]
[352900939,1739397042928,-500.0,0.00016438,2]
[352900941,1739397042938,-500.0,0.00016438,2]
[352900943,1739397042948,-500.0,0.00016438,2]
[352900945,1739397042957,-530.66960431,0.00016438,2]
[352900947,1739397042967,-500.0,0.00016438,2]
[352900949,1739397042977,-500.52825834,0.00016438,2]
[352900951,1739397042987,-500.0,0.00016438,2]
[352900953,1739397042996,-263.76847118,0.00016438,2]
[352900955,1739397043006,-500.0,0.00016438,2]
[352900957,1739397043015,-500.87220714,0.00016438,2]
[352900959,1739397043025,-375.70766128,0.00016438,2]
[352900961,1739397043036,-500.0,0.00016438,2]
[352900963,1739397043046,-610.64,0.00016438,2]
[352900965,1739397043056,-500.0,0.00016438,2]
[352900967,1739397043065,-500.0,0.00016438,2]
[352900969,1739397043076,-500.0,0.00016438,2]
[352900971,1739397043091,-500.0,0.00016438,2]
[352900973,1739397043101,-500.0,0.00016438,2]
[352900975,1739397043111,-500.0,0.00016438,2]
[352900977,1739397043122,-500.56396794,0.00016438,2]
[352900979,1739397043131,-500.0,0.00016438,2]
[352900982,1739397043141,-500.0,0.00016438,2]
[352900985,1739397043160,-501.25284158,0.00016438,2]
[352900987,1739397043175,-545.85,0.00016438,2]
[352900989,1739397043184,-706.19,0.00016438,2]
[352900991,1739397043195,-764.68,0.00016438,2]
[352900993,1739397043204,-500.0,0.00016438,2]